fUSD/lending_fUSD_20241009
["ID","MTS","AMOUNT","RATE_DAILY","PERIOD"]
[340067198,1728457832517,-2999.0,0.00022467,2]
[340067210,1728457838614,-551.09530478,0.00022467,2]
[340067214,1728457840158,-3124.00042364,0.00022467,2]
[340067226,1728457846489,-2674.09844588,0.00022467,2]
[340067227,1728457846498,-150.0,0.00022469,2]
[340067228,1728457846508,-5884.7063,0.0002247,2]
[340067229,1728457846518,-197.1113,0.0002247,2]
[340067230,1728457846527,-601.8584,0.0002247,2]
[340067231,1728457846536,-33851.38247898,0.0002247,2]
[340067233,1728457988121,219.82584753,0.000215,90]
[340067270,1728459032400,-319.31,0.00019179,2]
[340067271,1728459032410,-1929.0,0.000196,3]
[340067272,1728459032419,-1376.4650947,0.0002,5]
[340067273,1728459032428,-62.21888433,0.0002,5]
[340067274,1728459032439,-421.87238113,0.0002,5]
[340067275,1728459032448,-250.0,0.00021005,2]
[340067276,1728459032457,-594.15884645,0.00021102,2]
[340067277,1728459032467,-150.44,0.00021102,2]
[340067278,1728459032476,-288.0,0.0002116,2]
[340067279,1728459032485,-600.0,0.00021202,2]
[340067280,1728459032495,-799.26,0.00021203,2]
[340067281,1728459032504,-7176.14,0.00021203,2]
[340067282,1728459032513,-167.78,0.00021203,2]
[340067283,1728459032522,-1441.17,0.00021245,2]
[340067284,1728459032533,-150.99,0.00021299,2]
[340067285,1728459032543,-258.73,0.00021325,2]
[340067286,1728459032552,-1236.06,0.00021325,2]
[340067287,1728459032562,-712.0,0.00021351,2]
[340067288,1728459032571,-319.31,0.00021443,2]
[340067289,1728459032580,-200.0,0.000218,7]
[340067290,1728459032589,-500.0,0.000219,7]
[340067291,1728459032598,-10980.7129,0.00022348,2]
[340067292,1728459032607,-835.00678562,0.00022357,2]
[340067293,1728459032616,-309.27748041,0.00022358,2]
[340067294,1728459032625,-1000.0,0.00022358,2]
[340067295,1728459032634,-150.99,0.0002236,2]
[340067296,1728459032643,-153.69821865,0.0002237,2]
[340067297,1728459032652,-500.0,0.00022373,2]
[340067298,1728459032662,-238.06786563,0.00022447,2]
[340067299,1728459032671,-10880.61177001,0.00022448,4]
[340067344,1728459040492,-250.32109785,0.00019473,2]
[340067345,1728459040619,-249.67890215,0.00019473,2]
[340067346,1728459040629,-860.54877022,0.00020842,2]
[340067347,1728459040638,-8120.92259339,0.00022448,4]
[340067458,1728459046619,-375.76332227,0.00022448,4]
[340071713,1728459937856,21751.0,0.000215,90]
[340071737,1728460231588,-300.64,0.00019155,2]
[340071738,1728460231598,-1889.24697133,0.00020575,2]
[340071739,1728460231609,-1017.56465746,0.00020575,2]
[340071740,1728460231620,-4512.3703907,0.00020575,2]
[340071741,1728460231640,-903.99151241,0.00020575,2]
[340071742,1728460231749,-2904.2569678,0.00020575,2]
[340071764,1728460239479,-4794.80000004,0.00020575,2]
[340071765,1728460239847,-996.56768948,0.00020575,2]
[340071895,1728460242829,-11083.43730004,0.00020575,2]
[340071896,1728460242839,-2000.0,0.00020675,2]
[340071897,1728460242848,-150.44,0.00020948,2]
[340071898,1728460242857,-7187.94,0.0002113,2]
[340071899,1728460242866,-230.4,0.00021167,2]
[340071900,1728460242875,-258.73,0.00021193,2]
[340071901,1728460242885,-499.99,0.00021193,2]
[340071902,1728460242894,-250.0,0.00021198,2]
[340071903,1728460242903,-300.64,0.00021419,2]
[340071904,1728460242912,-75.02688243,0.00021543,2]
[340071905,1728460245741,-95.56311757,0.00021543,2]
[340071906,1728460245752,-170.59,0.00021597,2]
[340071907,1728460245761,-170.59,0.00021651,2]
[340071908,1728460245771,-769.6,0.00021686,2]
[340071909,1728460245783,-196.90807006,0.00022258,2]
[340071923,1728461431672,-710.26876103,0.00018955,2]
[340071924,1728461431728,-556.43473897,0.00018955,2]
[340071925,1728461431738,-318.49,0.00019164,2]
[340071926,1728461431747,-978.0,0.000198,3]
[340071927,1728461431757,-23890.0,0.00020826,2]
[340071928,1728461431766,-150.43,0.00020842,2]
[340071929,1728461431776,-1904.45,0.00020866,2]
[340071930,1728461431785,-250.0,0.00020901,2]
[340071931,1728461431795,-250.0,0.0002094,2]
[340071932,1728461431804,-150.99,0.0002094,2]
[340071933,1728461431813,-152.93,0.00020959,2]
[340071934,1728461431822,-144.23335115,0.00020986,2]
[340071935,1728461431838,-104.81664885,0.00020986,2]
[340071936,1728461431847,-190.61275115,0.00020986,2]
[340071937,1728461431858,-9.38724885,0.00020986,2]
[340071938,1728461431868,-499.99,0.0002102,2]
[340071939,1728461431877,-250.0,0.00021222,2]
[340071940,1728461431886,-318.49,0.00021428,2]
[340071941,1728461431895,-1000.0,0.0002147,2]
[340071943,1728461431905,-203.0,0.0002154,2]
[340071945,1728461431914,-180.64,0.00021634,2]
[340071947,1728461431923,-203.0,0.0002178,2]
[340071949,1728461431932,-167.09,0.00021886,2]
[340071951,1728461431941,-1000.0,0.00022,2]
[340071953,1728461431950,-2482.0,0.00022011,2]
[340071955,1728461431959,-203.0,0.0002202,2]
[340071957,1728461431968,-300.0,0.0002202,2]
[340071959,1728461431980,-203.0,0.0002225,2]
[340071960,1728461431989,-272.8281,0.00022258,2]
[340071963,1728461431999,-2055.42465115,0.00022258,2]
[340071965,1728461432011,-3309.54914885,0.00022258,2]
[340071967,1728461432020,-527.9892,0.00022258,2]
[340071969,1728461432030,-2866.72211387,0.00022258,2]
[340071971,1728461432042,-424.23178613,0.00022258,2]
[340071973,1728461432052,-278.34973236,0.00022348,2]
[340071975,1728461432061,-164.83289168,0.00022358,2]
[340071977,1728461432070,-217.0,0.00022358,2]
[340071979,1728461432079,-353.62696608,0.00022358,2]
[340071981,1728461432090,-509.43606644,0.00022358,2]
[340072013,1728461439855,-1248.7978144,0.00022358,2]
[340072014,1728461440016,-5309.57915308,0.00022358,2]
[340072015,1728461440028,-708.04909708,0.00022358,2]
[340072016,1728461440037,-221.05079101,0.0002236,2]
[340072017,1728461440047,-166.64750594,0.00022447,2]
[340072018,1728461440056,-280381.663313,0.00022448,5]
[340072019,1728461440066,-239240.122287,0.00022448,5]
[340072020,1728461440076,-1232.52764953,0.00022448,2]
[340072021,1728461440086,-1232.52764953,0.00022448,2]
[340072022,1728461440095,-2133.33339132,0.00022455,2]
[340072023,1728461440106,-375.0,0.00022457,2]
[340072024,1728461440115,-150.0,0.00022457,2]
[340072025,1728461440125,-150.82311812,0.00022457,7]
[340072026,1728461440135,-1441276.92813025,0.00022458,2]
[340072027,1728461440145,-151.0,0.00022458,7]
[340072028,1728461440155,-151.0,0.00022458,7]
[340072029,1728461440166,-201.77223137,0.0002246,4]
[340072030,1728461440176,-151.0,0.0002246,7]
[340072031,1728461440186,-151.0,0.0002246,7]
[340072032,1728461440196,-151.0,0.0002246,7]
[340072033,1728461440206,-167.350614,0.0002246,7]
[340072034,1728461440216,-151.0,0.0002246,7]
[340072035,1728461440225,-151.0,0.0002246,7]
[340072036,1728461440234,-151.0,0.0002246,7]
[340072037,1728461440244,-151.0,0.0002246,7]
[340072038,1728461440254,-226.353851,0.0002246,7]
[340072039,1728461440264,-151.0,0.0002246,7]
[340072040,1728461440274,-38714.7969711,0.00022464,2]
[340072041,1728461440283,-876.0278356,0.00022464,2]
[340072042,1728461440295,-151.0,0.00022464,7]
[340072043,1728461440306,-151.0,0.00022464,7]
[340072044,1728461440456,-150.01,0.00022469,2]
[340072045,1728461440466,-1514.29323284,0.00022469,2]
[340072046,1728461440475,-1000.0,0.0002247,2]
[340072047,1728461440486,-1000.0,0.0002247,2]
[340072048,1728461440496,-1000.0,0.0002247,2]
[340072049,1728461440505,-1000.0,0.0002247,2]
[340072050,1728461440514,-1000.0,0.0002247,2]
[340072051,1728461440524,-1000.0,0.0002247,2]
[340072052,1728461440533,-1000.0,0.0002247,2]
[340072053,1728461440542,-1000.0,0.0002247,2]
[340072054,1728461440551,-1000.0,0.0002247,2]
[340072055,1728461440560,-647.80894514,0.0002247,2]
[340072056,1728461440570,-151.0,0.0002247,7]
[340072057,1728461440580,-151.0,0.0002247,7]
[340072058,1728461440589,-16145.7230455,0.0002247,2]
[340072059,1728461440598,-200.615528,0.0002247,7]
[340072060,1728461440608,-9078.7209901,0.0002247,2]
[340072061,1728461440618,-197.331375,0.0002247,7]
[340072062,1728461440627,-151.0,0.0002247,7]
[340072063,1728461440636,-151.0,0.0002247,7]
[340072064,1728461440645,-151.0,0.0002247,7]
[340072065,1728461440655,-151.0,0.0002247,7]
[340072066,1728461440664,-151.0,0.0002247,7]
[340072067,1728461440674,-151.0,0.0002247,7]
[340072068,1728461440683,-500.0,0.00022473,2]
[340072069,1728461440695,-507.0,0.00022479,2]
[340072070,1728461440705,-201.0,0.0002249,2]
[340072071,1728461440714,-203.0,0.0002249,2]
[340072072,1728461440724,-3000.0,0.000225,2]
[340072073,1728461440734,-150.0,0.00022667,2]
[340072074,1728461440744,-227.0,0.000227,2]
[340072075,1728461440753,-500.0,0.00022706,2]
[340072076,1728461440763,-500.0,0.00022706,2]
[340072077,1728461440775,-500.0,0.00022706,2]
[340072078,1728461440785,-500.0,0.00022706,2]
[340072079,1728461440794,-500.0,0.00022706,2]
[340072080,1728461440804,-400.8219,0.00022706,2]
[340072081,1728461440814,-360.7065,0.00022706,2]
[340072082,1728461440824,-201.0,0.0002273,2]
[340072083,1728461440833,-203.0,0.0002273,2]
[340072084,1728461440843,-150.0,0.000228,2]
[340072085,1728461440852,-684.4296,0.000228,2]
[340072086,1728461440861,-3261.4706252,0.00022842,2]
[340072087,1728461440871,-151.0,0.00022858,7]
[340072088,1728461440880,-151.0,0.00022858,7]
[340072089,1728461440890,-151.0,0.00022858,7]
[340072090,1728461440899,-151.0,0.00022858,7]
[340072091,1728461440909,-213.0,0.0002289,2]
[340072092,1728461440918,-214.0,0.0002289,2]
[340072093,1728461440928,-201.0,0.0002297,2]
[340072094,1728461440937,-203.0,0.0002297,2]
[340072095,1728461440947,-167.0,0.00023,4]
[340072096,1728461440956,-3261.4706252,0.00023014,2]
[340072097,1728461440966,-38714.7969711,0.00023014,2]
[340072098,1728461440975,-151.0,0.00023014,7]
[340072099,1728461440987,-151.0,0.00023014,7]
[340072100,1728461440996,-151.0,0.0002302,7]
[340072101,1728461441005,-190.985341,0.0002302,7]
[340072102,1728461441015,-16145.7230455,0.0002302,2]
[340072103,1728461441024,-9078.7209901,0.0002302,2]
[340072104,1728461441034,-151.0,0.0002302,7]
[340072105,1728461441043,-151.0,0.0002302,7]
[340072106,1728461441053,-151.0,0.0002302,7]
[340072107,1728461441063,-151.0,0.0002302,7]
[340072108,1728461441072,-38714.7969711,0.00023026,2]
[340072109,1728461441082,-151.0,0.00023026,7]
[340072110,1728461441092,-151.0,0.00023026,7]
[340072111,1728461441101,-151.0,0.0002303,7]
[340072112,1728461441111,-16145.7230455,0.0002303,2]
[340072113,1728461441120,-9078.7209901,0.0002303,2]
[340072114,1728461441130,-3261.4706252,0.0002303,2]
[340072115,1728461441140,-151.0,0.0002303,7]
[340072116,1728461441149,-151.0,0.0002303,7]
[340072117,1728461441159,-151.0,0.0002303,7]
[340072118,1728461441169,-151.0,0.0002303,7]
[340072119,1728461441178,-151.0,0.00023036,7]
[340072120,1728461441187,-151.0,0.00023036,7]
[340072121,1728461441197,-151.0,0.00023036,7]
[340072122,1728461441207,-151.0,0.00023036,7]
[340072123,1728461441217,-209.731382,0.00023036,7]
[340072124,1728461441226,-151.0,0.00023042,7]
[340072125,1728461441239,-151.0,0.00023042,7]
[340072126,1728461441248,-151.0,0.00023042,7]
[340072127,1728461441258,-151.0,0.00023042,7]
[340072128,1728461441267,-500.0,0.00023052,2]
[340072129,1728461441276,-500.0,0.00023052,2]
[340072130,1728461441287,-500.0,0.00023052,2]
[340072131,1728461441296,-500.0,0.00023052,2]
[340072132,1728461441306,-500.0,0.00023052,2]
[340072133,1728461441315,-500.0,0.00023052,2]
[340072134,1728461441325,-500.0,0.00023052,2]
[340072135,1728461441335,-500.0,0.00023052,2]
[340072136,1728461441344,-500.0,0.00023052,2]
[340072137,1728461441353,-500.0,0.00023052,2]
[340072138,1728461441362,-500.0,0.00023052,2]
[340072139,1728461441371,-500.0,0.00023052,2]
[340072140,1728461441380,-500.0,0.00023052,2]
[340072141,1728461441389,-500.0,0.00023052,2]
[340072142,1728461441398,-500.0,0.00023052,2]
[340072143,1728461441407,-500.0,0.00023052,2]
[340072144,1728461441417,-500.0,0.00023052,2]
[340072145,1728461441427,-500.0,0.00023052,2]
[340072146,1728461441436,-500.0,0.00023052,2]
[340072147,1728461441446,-500.0,0.00023052,2]
[340072148,1728461441456,-500.0,0.00023052,2]
[340072149,1728461441465,-500.0,0.00023052,2]
[340072150,1728461441475,-500.0,0.00023052,2]
[340072151,1728461441487,-500.0,0.00023052,2]
[340072152,1728461441497,-500.0,0.00023052,2]
[340072153,1728461441507,-500.0,0.00023052,2]
[340072154,1728461441516,-500.0,0.00023052,2]
[340072155,1728461441526,-500.0,0.00023052,2]
[340072156,1728461441535,-500.0,0.00023052,2]
[340072157,1728461441545,-500.0,0.00023052,2]
[340072158,1728461441554,-500.0,0.00023052,2]
[340072159,1728461441563,-500.0,0.00023052,2]
[340072160,1728461441574,-500.0,0.00023052,2]
[340072161,1728461441584,-500.0,0.00023052,2]
[340072162,1728461441595,-500.0,0.00023052,2]
[340072163,1728461441605,-500.0,0.00023052,2]
[340072164,1728461441615,-500.0,0.00023052,2]
[340072165,1728461441626,-500.0,0.00023052,2]
[340072166,1728461441636,-500.0,0.00023052,2]
[340072167,1728461441646,-500.0,0.00023052,2]
[340072168,1728461441656,-500.0,0.00023052,2]
[340072169,1728461441666,-500.0,0.00023052,2]
[340072170,1728461441676,-500.0,0.00023052,2]
[340072171,1728461441685,-500.0,0.00023052,2]
[340072172,1728461441695,-500.0,0.00023052,2]
[340072173,1728461441705,-500.0,0.00023052,2]
[340072174,1728461441715,-500.0,0.00023052,2]
[340072175,1728461441725,-500.0,0.00023052,2]
[340072176,1728461441738,-500.0,0.00023052,2]
[340072177,1728461441748,-500.0,0.00023052,2]
[340072178,1728461441758,-500.0,0.00023052,2]
[340072179,1728461441767,-500.0,0.00023052,2]
[340072180,1728461441777,-500.0,0.00023052,2]
[340072181,1728461441786,-500.0,0.00023052,2]
[340072182,1728461441796,-500.0,0.00023052,2]
[340072183,1728461441806,-500.0,0.00023052,2]
[340072184,1728461441815,-500.0,0.00023052,2]
[340072185,1728461441825,-500.0,0.00023052,2]
[340072186,1728461441834,-500.0,0.00023052,2]
[340072187,1728461441845,-500.0,0.00023052,2]
[340072188,1728461441854,-500.0,0.00023052,2]
[340072189,1728461441864,-500.0,0.00023052,2]
[340072190,1728461441874,-500.0,0.00023052,2]
[340072191,1728461441884,-500.0,0.00023052,2]
[340072192,1728461441893,-500.0,0.00023052,2]
[340072193,1728461441903,-500.0,0.00023052,2]
[340072194,1728461441913,-500.0,0.00023052,2]
[340072195,1728461441923,-500.0,0.00023052,2]
[340072196,1728461441932,-500.0,0.00023052,2]
[340072197,1728461441942,-500.0,0.00023052,2]
[340072198,1728461441953,-500.0,0.00023052,2]
[340072199,1728461441962,-500.0,0.00023052,2]
[340072200,1728461441971,-500.0,0.00023052,2]
[340072201,1728461441985,-500.0,0.00023052,2]
[340072202,1728461441995,-500.0,0.00023052,2]
[340072203,1728461442004,-500.0,0.00023052,2]
[340072204,1728461442013,-500.0,0.00023052,2]
[340072205,1728461442023,-500.0,0.00023052,2]
[340072206,1728461442032,-500.0,0.00023052,2]
[340072207,1728461442041,-500.0,0.00023052,2]
[340072208,1728461442050,-500.0,0.00023052,2]
[340072209,1728461442059,-500.0,0.00023052,2]
[340072210,1728461442069,-500.0,0.00023052,2]
[340072211,1728461442078,-500.0,0.00023052,2]
[340072212,1728461442088,-500.0,0.00023052,2]
[340072213,1728461442097,-500.0,0.00023052,2]
[340072214,1728461442106,-500.0,0.00023052,2]
[340072215,1728461442115,-500.0,0.00023052,2]
[340072216,1728461442126,-500.0,0.00023052,2]
[340072217,1728461442135,-500.0,0.00023052,2]
[340072218,1728461442144,-500.0,0.00023052,2]
[340072219,1728461442155,-500.0,0.00023052,2]
[340072220,1728461442165,-500.0,0.00023052,2]
[340072221,1728461442175,-500.0,0.00023052,2]
[340072222,1728461442184,-500.0,0.00023052,2]
[340072223,1728461442194,-500.0,0.00023052,2]
[340072224,1728461442203,-500.0,0.00023052,2]
[340072225,1728461442213,-500.0,0.00023052,2]
[340072226,1728461442223,-500.0,0.00023052,2]
[340072227,1728461442236,-500.0,0.00023052,2]
[340072228,1728461442245,-500.0,0.00023052,2]
[340072229,1728461442255,-500.0,0.00023052,2]
[340072230,1728461442264,-500.0,0.00023052,2]
[340072231,1728461442273,-500.0,0.00023052,2]
[340072232,1728461442282,-500.0,0.00023052,2]
[340072233,1728461442291,-151.0,0.00023052,7]
[340072234,1728461442301,-151.0,0.00023052,7]
[340072235,1728461442310,-151.0,0.00023052,7]
[340072236,1728461442320,-151.0,0.00023052,7]
[340072237,1728461442329,-151.0,0.00023052,7]
[340072238,1728461442338,-192.666848,0.00023052,7]
[340072239,1728461442347,-151.0,0.00023052,7]
[340072240,1728461442358,-151.0,0.00023052,7]
[340072241,1728461442367,-500.0,0.00023052,2]
[340072242,1728461442376,-500.0,0.00023052,2]
[340072243,1728461442385,-500.0,0.00023052,2]
[340072244,1728461442394,-500.0,0.00023052,2]
[340072245,1728461442403,-500.0,0.00023052,2]
[340072246,1728461442413,-500.0,0.00023052,2]
[340072247,1728461442423,-500.0,0.00023052,2]
[340072248,1728461442432,-500.0,0.00023052,2]
[340072249,1728461442441,-500.0,0.00023052,2]
[340072250,1728461442450,-500.0,0.00023052,2]
[340072251,1728461442460,-500.0,0.00023052,2]
[340072254,1728461442567,-500.0,0.00023052,2]
[340072256,1728461442576,-500.0,0.00023052,2]
[340072258,1728461442585,-500.0,0.00023052,2]
[340072259,1728461442594,-500.0,0.00023052,2]
[340072260,1728461442603,-500.0,0.00023052,2]
[340072261,1728461442612,-500.0,0.00023052,2]
[340072262,1728461442622,-500.0,0.00023052,2]
[340072263,1728461442631,-500.0,0.00023052,2]
[340072264,1728461442640,-500.0,0.00023052,2]
[340072265,1728461442649,-500.0,0.00023052,2]
[340072266,1728461442658,-500.0,0.00023052,2]
[340072267,1728461442667,-500.0,0.00023052,2]
[340072268,1728461442676,-500.0,0.00023052,2]
[340072269,1728461442685,-500.0,0.00023052,2]
[340072270,1728461442698,-500.0,0.00023052,2]
[340072271,1728461442708,-500.0,0.00023052,2]
[340072272,1728461442717,-500.0,0.00023052,2]
[340072273,1728461442727,-500.0,0.00023052,2]
[340072274,1728461442738,-151.0,0.00023052,7]
[340072275,1728461442747,-500.0,0.00023052,2]
[340072276,1728461442756,-500.0,0.00023052,2]
[340072277,1728461442766,-500.0,0.00023052,2]
[340072278,1728461442776,-151.0,0.00023052,7]
[340072279,1728461442786,-500.0,0.00023052,2]
[340072280,1728461442796,-151.0,0.00023052,7]
[340072281,1728461442805,-500.0,0.00023052,2]
[340072282,1728461442815,-500.0,0.00023052,2]
[340072283,1728461442824,-500.0,0.00023052,2]
[340072284,1728461442834,-500.0,0.00023052,2]
[340072285,1728461442843,-500.0,0.00023052,2]
[340072286,1728461442852,-151.0,0.00023052,7]
[340072287,1728461442862,-151.0,0.00023052,7]
[340072288,1728461442871,-196.674192,0.00023052,7]
[340072289,1728461442880,-161.12,0.0002306,2]
[340072290,1728461442889,-189.120189,0.00023078,7]
[340072291,1728461442899,-189.120189,0.00023078,7]
[340072292,1728461442909,-232.893525,0.00023078,7]
[340072293,1728461442918,-232.893525,0.00023078,7]
[340072294,1728461442928,-1010.58,0.000232,2]
[340072295,1728461442937,-201.0,0.0002321,2]
[340072296,1728461442947,-203.0,0.0002321,2]
[340072297,1728461442956,-151.0,0.00023214,7]
[340072298,1728461442965,-213.0,0.0002323,2]
[340072299,1728461442974,-214.0,0.0002323,2]
[340072300,1728461442984,-186.38935698,0.00023236,4]
[340072301,1728461442993,-150.0,0.00023236,2]
[340072302,1728461443003,-150.0,0.00023236,2]
[340072304,1728461443012,-150.0,0.00023236,2]
[340072306,1728461443023,-150.54314756,0.00023236,2]
[340072308,1728461443033,-150.0,0.00023236,2]
[340072310,1728461443043,-150.0,0.00023236,2]
[340072311,1728461443052,-150.0,0.00023236,2]
[340072312,1728461443062,-150.0,0.00023236,2]
[340072313,1728461443071,-151.1974384,0.00023236,2]
[340072314,1728461443080,-150.0,0.00023236,2]
[340072315,1728461443089,-164.01895257,0.00023236,2]
[340072316,1728461443099,-150.0,0.00023236,2]
[340072317,1728461443109,-150.0,0.00023236,2]
[340072318,1728461443118,-152.0,0.00023257,3]
[340072319,1728461443128,-150.0,0.00023307,2]
[340072320,1728461443138,-150.0,0.0002332,2]
[340072321,1728461443148,-150.0,0.00023324,2]
[340072322,1728461443160,-150.0,0.00023343,2]
[340072324,1728461443169,-150.0,0.00023346,2]
[340072326,1728461443178,-150.0,0.00023352,2]
[340072327,1728461443188,-150.0,0.00023364,2]
[340072328,1728461443197,-423.52749242,0.00023367,2]
[340072329,1728461443207,-2675.51190106,0.00023369,2]
[340072330,1728461443216,-346.59115454,0.00023369,2]
[340072331,1728461443226,-186.37507345,0.00023369,2]
[340072332,1728461443236,-3803.84311998,0.00023369,2]
[340072333,1728461443246,-180.21296539,0.00023371,2]
[340072334,1728461443255,-150.0,0.00023382,2]
[340072335,1728461443265,-22652.54348261,0.00023399,2]
[340072336,1728461443274,-270.30853938,0.00023399,4]
[340072337,1728461443283,-3261.4706252,0.00023403,2]
[340072338,1728461443292,-38714.7969711,0.00023403,2]
[340072339,1728461443302,-151.0,0.00023403,7]
[340072340,1728461443311,-150.0,0.00023414,2]
[340072341,1728461443320,-16145.7230455,0.00023419,2]
[340072342,1728461443329,-9078.7209901,0.00023419,2]
[340072343,1728461443339,-151.0,0.00023419,7]
[340072344,1728461443349,-151.0,0.00023419,7]
[340072345,1728461443359,-174.676277,0.00023435,7]
[340072346,1728461443369,-150.0,0.0002344,2]
[340072347,1728461443378,-150.0,0.00023444,2]
[340072348,1728461443386,-201.0,0.0002345,2]
[340072349,1728461443396,-203.0,0.0002345,2]
[340072350,1728461443405,-150.0,0.00023454,2]
[340072351,1728461443415,-16145.7230455,0.00023467,2]
[340072352,1728461443426,-9078.7209901,0.00023467,2]
[340072353,1728461443436,-3261.4706252,0.00023467,2]
[340072354,1728461443446,-38714.7969711,0.00023467,2]
[340072355,1728461443457,-151.0,0.00023467,7]
[340072356,1728461443467,-186.38935698,0.00023469,4]
[340072357,1728461443476,-150.0,0.0002347,2]
[340072358,1728461443486,-150.0,0.00023479,2]
[340072359,1728461443495,-150.0,0.00023482,2]
[340072360,1728461443505,-150.0,0.00023488,2]
[340072361,1728461443515,-189.120189,0.00023499,7]
[340072362,1728461443524,-189.120189,0.00023499,7]
[340072363,1728461443534,-232.893525,0.00023499,7]
[340072364,1728461443543,-232.893525,0.00023499,7]
[340072365,1728461443555,-16145.7230455,0.00023499,2]
[340072366,1728461443565,-9078.7209901,0.00023499,2]
[340072367,1728461443574,-189.120189,0.00023515,7]
[340072368,1728461443583,-189.120189,0.00023515,7]
[340072369,1728461443592,-232.893525,0.00023515,7]
[340072370,1728461443601,-232.893525,0.00023515,7]
[340072371,1728461443611,-150.0,0.00023523,2]
[340072372,1728461443620,-189.120189,0.00023531,7]
[340072373,1728461443629,-189.120189,0.00023531,7]
[340072374,1728461443640,-189.120189,0.00023531,7]
[340072375,1728461443650,-189.120189,0.00023531,7]
[340072376,1728461443659,-232.893525,0.00023531,7]
[340072377,1728461443669,-232.893525,0.00023531,7]
[340072378,1728461443678,-232.893525,0.00023531,7]
[340072379,1728461443688,-232.893525,0.00023531,7]
[340072380,1728461443698,-150.0,0.00023533,2]
[340072381,1728461443707,-150.0,0.00023537,2]
[340072382,1728461443716,-150.0,0.00023546,2]
[340072383,1728461443725,-150.0,0.00023561,2]
[340072384,1728461443737,-38714.7969711,0.00023564,2]
[340072385,1728461443747,-3261.4706252,0.00023574,2]
[340072386,1728461443755,-236.0,0.0002358,2]
[340072387,1728461443765,-213.0,0.0002358,2]
[340072388,1728461443775,-214.0,0.0002358,2]
[340072389,1728461443784,-684.4296,0.000236,2]
[340072390,1728461443793,-150.0,0.0002368,4]
[340072391,1728461443804,-201.0,0.0002368,2]
[340072392,1728461443815,-203.0,0.0002368,2]
[340072393,1728461443824,-11906.18933384,0.00023683,2]
[340072394,1728461443834,-318.49,0.00023692,2]
[340072395,1728461443843,-752.33,0.00023699,2]
[340072396,1728461443852,-186.38935698,0.00023702,4]
[340072397,1728461443862,-167.41,0.00023793,2]
[340072398,1728461443871,-503.07,0.00023795,2]
[340072399,1728461443880,-500.0,0.00023842,2]
[340072400,1728461443889,-150.0,0.00023843,4]
[340072401,1728461443899,-150.0,0.000239,7]
[340072402,1728461443908,-189.120189,0.00023912,7]
[340072403,1728461443917,-189.120189,0.00023912,7]
[340072404,1728461443926,-232.893525,0.00023912,7]
[340072405,1728461443935,-232.893525,0.00023912,7]
[340072406,1728461443945,-236.0,0.0002392,2]
[340072407,1728461443954,-213.0,0.0002392,2]
[340072408,1728461443963,-214.0,0.0002392,2]
[340072409,1728461443973,-210.0,0.0002392,2]
[340072410,1728461443984,-201.0,0.0002392,2]
[340072411,1728461443994,-203.0,0.0002392,2]
[340072412,1728461444004,-150.0,0.00023921,2]
[340072413,1728461444013,-125803.99656974,0.00023922,2]
[340072414,1728461444022,-77363.37191046,0.00023922,2]